bitfinex/quotes_BTCUSD_20250224
["timestamp","ask_amount","ask_price","bid_price","bid_amount"]
[1740360161634,0.33908327,96412.0,96411.0,8e-07]
[1740360162020,0.32383037,96412.0,96411.0,8e-07]
[1740360162518,0.31983037,96412.0,96411.0,8e-07]
[1740360162738,0.32283037,96412.0,96411.0,8e-07]
[1740360163795,0.32183037,96412.0,96411.0,8e-07]
[1740360164040,0.32283037,96412.0,96411.0,8e-07]
[1740360164795,0.46168274,96412.0,96411.0,8e-07]
[1740360165153,0.45627385,96412.0,96411.0,8e-07]
[1740360166553,0.45327385,96412.0,96411.0,8e-07]
[1740360166774,0.45227385,96412.0,96411.0,8e-07]
[1740360166976,0.45627385,96412.0,96411.0,8e-07]
[1740360167183,0.45827385,96412.0,96411.0,8e-07]
[1740360167402,0.45227385,96412.0,96411.0,8e-07]
[1740360167557,0.45427385,96412.0,96411.0,8e-07]
[1740360168685,0.43802148,96412.0,96411.0,8e-07]
[1740360169895,0.44302148,96412.0,96411.0,8e-07]
[1740360170721,0.36712148,96412.0,96411.0,8e-07]
[1740360171098,0.32042148,96412.0,96411.0,8e-07]
[1740360172512,0.32127178,96412.0,96411.0,8e-07]
[1740360173254,0.33752457,96412.0,96411.0,8e-07]
[1740360178696,0.44017026,96412.0,96411.0,8e-07]
[1740360179479,0.43517026,96412.0,96411.0,8e-07]
[1740360179686,0.33252457,96412.0,96411.0,8e-07]
[1740360179920,0.33852457,96412.0,96411.0,8e-07]
[1740360180129,0.33652457,96412.0,96411.0,8e-07]
[1740360180330,0.33052457,96412.0,96411.0,8e-07]
[1740360180945,0.33352457,96412.0,96411.0,8e-07]
[1740360181886,0.33952457,96412.0,96411.0,8e-07]
[1740360189826,0.32327178,96412.0,96411.0,8e-07]
[1740360191114,0.32027178,96412.0,96411.0,8e-07]
[1740360191319,0.31427178,96412.0,96411.0,8e-07]
[1740360191527,0.31527178,96412.0,96411.0,8e-07]
[1740360191762,0.31727178,96412.0,96411.0,8e-07]
[1740360192180,0.31427178,96412.0,96411.0,8e-07]
[1740360192386,0.31727178,96412.0,96411.0,8e-07]
[1740360194291,0.31427178,96412.0,96411.0,8e-07]
[1740360194481,0.31427178,96412.0,96411.0,0.0020008]
[1740360194679,0.31727178,96412.0,96411.0,0.0020008]
[1740360194888,0.31727178,96412.0,96411.0,8e-07]
[1740360195093,0.31427178,96412.0,96411.0,8e-07]
[1740360195423,0.31427178,96412.0,96411.0,0.0010008]
[1740360195808,0.84940978,96412.0,96411.0,0.0010008]
[1740360196033,1.03994978,96412.0,96411.0,8e-07]
[1740360196238,0.31527178,96412.0,96411.0,8e-07]
[1740360197239,0.31527178,96412.0,96411.0,0.0010008]
[1740360197441,1.41622978,96412.0,96411.0,0.0010008]
[1740360197627,1.41622978,96412.0,96411.0,8e-07]
[1740360197969,0.31427178,96412.0,96411.0,0.0010008]
[1740360198181,1.61522978,96412.0,96411.0,8e-07]
[1740360198388,0.31527178,96412.0,96411.0,8e-07]
[1740360198540,0.31527178,96412.0,96411.0,0.0010008]
[1740360198756,0.31427178,96412.0,96411.0,0.0010008]
[1740360198949,1.61440178,96412.0,96411.0,0.0010008]
[1740360199180,1.61540178,96412.0,96411.0,0.0010008]
[1740360199353,0.81870678,96412.0,96411.0,0.0010008]
[1740360199554,0.72345478,96412.0,96411.0,0.0010008]
[1740360201596,0.82610047,96412.0,96411.0,0.0010008]
[1740360203105,0.82510047,96412.0,96411.0,0.0010008]
[1740360203808,0.84135318,96412.0,96411.0,0.0010008]
[1740360204202,0.82510047,96412.0,96411.0,8e-07]
[1740360204401,0.42291747,96412.0,96411.0,8e-07]
[1740360204660,0.42591747,96412.0,96411.0,8e-07]
[1740360205045,0.1457632,96398.0,96397.0,0.0761]
[1740360205243,1.6045882,96398.0,96397.0,0.0761]
[1740360205474,1.614429,96398.0,96397.0,0.01021251]
[1740360205694,1.458825,96398.0,96390.0,0.0761]
[1740360205918,0.155616,96391.0,96390.0,0.0761]
[1740360207937,0.155616,96391.0,96390.0,0.0791]
[1740360208566,0.155616,96391.0,96390.0,0.0811]
[1740360209263,0.155616,96391.0,96390.0,0.08991559]
[1740360209501,0.155616,96391.0,96390.0,0.08791559]
[1740360210836,0.155616,96391.0,96390.0,0.08891559]
[1740360211213,0.155616,96391.0,96390.0,0.08591559]
[1740360211415,0.155616,96391.0,96390.0,0.08791559]
[1740360215650,0.866522,96391.0,96390.0,0.01181559]
[1740360215834,1.270208,96391.0,96390.0,0.01181559]
[1740360216123,1.100224,96391.0,96390.0,0.003]
[1740360216942,1.100224,96391.0,96390.0,0.002]
[1740360217369,0.305619,96389.0,96382.0,0.0792]
[1740360217545,0.543832,96389.0,96382.0,0.0792]
[1740360218790,0.543832,96389.0,96388.0,0.0027002]
[1740360220142,0.544832,96389.0,96388.0,0.0027002]
[1740360223237,0.64747769,96389.0,96388.0,0.0027002]
[1740360223439,0.155648,96371.0,96370.0,0.0012998]
[1740360223664,0.155648,96371.0,96370.0,0.01119356]
[1740360223862,0.155648,96371.0,96370.0,0.00134273]
[1740360224482,0.465542,96371.0,96370.0,0.00134273]
[1740360224693,0.582158,96371.0,96370.0,0.00134273]
[1740360225087,0.582158,96371.0,96370.0,0.00534273]
[1740360226497,0.582158,96371.0,96370.0,0.00734273]
[1740360226897,0.58981319,96371.0,96370.0,0.00734273]
[1740360227143,0.73981319,96371.0,96370.0,0.00734273]
[1740360227353,0.47334619,96371.0,96370.0,0.00734273]
[1740360227930,0.42148719,96371.0,96370.0,0.00534273]
[1740360228409,0.42148719,96371.0,96370.0,0.00134273]
[1740360228779,0.31330319,96371.0,96370.0,0.00134273]
[1740360228983,0.42494919,96371.0,96370.0,0.00134273]
[1740360229180,0.31330319,96371.0,96370.0,0.00134273]
[1740360229360,0.31430319,96371.0,96370.0,0.00134273]
[1740360229708,0.31330319,96371.0,96370.0,0.00134273]
[1740360230001,0.31430319,96371.0,96370.0,0.00134273]
[1740360232912,0.31330319,96371.0,96370.0,0.00134273]
[1740360233315,0.31430319,96371.0,96370.0,0.00134273]
[1740360233521,0.51200619,96371.0,96370.0,0.00134273]
[1740360234339,0.51200619,96371.0,96370.0,0.00234273]
[1740360237158,0.45980519,96371.0,96370.0,0.00234273]
[1740360237366,0.31430319,96371.0,96370.0,0.00234273]
[1740360238614,0.41840519,96371.0,96370.0,0.00234273]
[1740360239041,0.31430319,96371.0,96370.0,0.00234273]
[1740360240317,0.31430319,96371.0,96370.0,0.08544273]
[1740360248807,0.16430319,96371.0,96370.0,0.08544273]
[1740360251747,0.00865519,96371.0,96370.0,0.08544273]
[1740360251948,0.00865519,96371.0,96370.0,0.13084273]
[1740360252177,0.00865519,96371.0,96370.0,0.14072251]
[1740360253776,0.001,96371.0,96370.0,0.25790905]
[1740360254056,0.156648,96371.0,96370.0,0.14072251]
[1740360254475,0.156648,96371.0,96370.0,0.13084273]
[1740360254699,0.155648,96371.0,96370.0,0.12984273]
[1740360255115,0.155648,96371.0,96370.0,0.00734273]
[1740360255256,0.155648,96371.0,96370.0,0.00234273]
[1740360255468,0.155648,96371.0,96370.0,0.00634273]
[1740360255851,0.155648,96371.0,96370.0,0.00234273]
[1740360256236,0.155648,96371.0,96370.0,0.00134273]
[1740360256437,0.155648,96371.0,96370.0,0.00334273]
[1740360257078,0.155648,96371.0,96370.0,0.00234273]
[1740360257304,0.155648,96371.0,96370.0,0.00334273]
[1740360258642,0.155648,96371.0,96370.0,0.00234273]
[1740360258800,0.155648,96371.0,96370.0,0.00434273]
[1740360272596,0.3627176,96371.0,96370.0,0.00434273]
[1740360272807,0.305648,96371.0,96370.0,0.00434273]
[1740360273568,0.305648,96371.0,96370.0,0.00334273]
[1740360273783,2.56918978,96371.0,96370.0,0.00134273]
[1740360275235,2.56418978,96371.0,96370.0,0.00134273]
[1740360275500,2.56918978,96371.0,96370.0,0.00134273]
[1740360275667,1.06798478,96371.0,96370.0,0.00134273]
[1740360276134,0.70834078,96371.0,96370.0,0.00134273]
[1740360276336,0.71634078,96371.0,96370.0,0.00134273]
[1740360276714,0.70834078,96371.0,96370.0,0.00134273]
[1740360276912,0.71034078,96371.0,96370.0,0.00134273]
[1740360277115,0.81798647,96371.0,96370.0,0.00134273]
[1740360277718,0.71534078,96371.0,96370.0,0.00134273]
[1740360279520,0.36879578,96371.0,96370.0,0.00134273]
[1740360279730,1.88246678,96371.0,96370.0,0.00134273]
[1740360279977,1.87715278,96371.0,96370.0,0.00134273]
[1740360282163,1.66477378,96371.0,96370.0,0.00134273]
[1740360285514,0.207545,96365.0,96360.0,0.0017]
[1740360285714,0.305664,96361.0,96360.0,0.00048621]
[1740360285921,1.392778,96361.0,96360.0,0.00048621]
[1740360286119,1.395056,96361.0,96360.0,0.00048621]
[1740360287147,1.57600169,96361.0,96360.0,0.00048621]
[1740360287356,1.57600169,96361.0,96341.0,0.0829497]
[1740360287357,0.305672,96356.0,96341.0,0.0829497]
[1740360287565,3.41310347,96356.0,96341.0,0.0008497]
[1740360287769,2.91731447,96356.0,96341.0,0.0008497]
[1740360288381,0.30568,96351.0,96341.0,0.0008497]
[1740360288583,3.66307976,96351.0,96341.0,0.0008497]
[1740360288768,3.77122176,96351.0,96341.0,0.0008497]
[1740360288963,3.26467645,96351.0,96341.0,0.0008497]
[1740360289372,3.23459745,96351.0,96341.0,0.0008497]
[1740360289928,3.08226445,96351.0,96341.0,0.0008497]
[1740360290983,3.08426445,96351.0,96341.0,0.0008497]
[1740360291426,3.09221905,96351.0,96341.0,0.0008497]
[1740360291630,3.10848073,96351.0,96341.0,0.0008497]
[1740360291847,2.74906873,96351.0,96341.0,0.0008497]
[1740360292462,0.305695,96342.0,96341.0,0.0008497]
[1740360292878,1.47097,96342.0,96341.0,0.0008497]
[1740360293072,1.931188,96342.0,96341.0,0.0008497]
[1740360293887,1.493808,96342.0,96341.0,0.0008497]
[1740360294108,1.495808,96342.0,96341.0,0.0008497]
[1740360294858,1.493808,96342.0,96341.0,0.0008497]
[1740360295006,1.400963,96342.0,96341.0,0.0008497]
[1740360295200,1.406963,96342.0,96341.0,0.0008497]
[1740360295941,1.402963,96342.0,96341.0,0.0008497]
[1740360296203,0.88312344,96342.0,96341.0,0.0008497]
[1740360296394,0.88712344,96342.0,96341.0,0.0008497]
[1740360296916,0.98976913,96342.0,96341.0,0.0008497]
[1740360300923,0.88700344,96342.0,96341.0,0.0008497]
[1740360301693,0.69816644,96342.0,96341.0,0.0008497]
[1740360302398,0.56242544,96342.0,96341.0,0.0008497]
[1740360302830,0.55842544,96342.0,96341.0,0.0008497]
[1740360303033,0.55942544,96342.0,96341.0,0.0008497]
[1740360303611,0.55642544,96342.0,96341.0,0.0008497]
[1740360304050,0.31824244,96342.0,96341.0,0.0008497]
[1740360304409,1.34156844,96342.0,96341.0,0.0008497]
[1740360305189,1.23702844,96342.0,96341.0,0.0008497]
[1740360305940,0.77374344,96342.0,96341.0,0.0008497]
[1740360306142,0.63249444,96342.0,96341.0,0.0008497]
[1740360306494,0.46095044,96342.0,96341.0,0.0818497]
[1740360306697,0.01466744,96342.0,96341.0,0.0818497]
[1740360306901,0.17036244,96342.0,96341.0,0.0818497]
[1740360307122,0.17036244,96342.0,96341.0,0.09181284]
[1740360307546,0.17036244,96342.0,96341.0,0.09281284]
[1740360308051,0.17036244,96342.0,96341.0,0.09181284]
[1740360308253,0.16836244,96342.0,96341.0,0.09481284]
[1740360308585,0.17036244,96342.0,96341.0,0.09481284]
[1740360308993,0.16836244,96342.0,96341.0,0.09481284]
[1740360311520,0.16836244,96342.0,96341.0,0.01381284]
[1740360311521,0.16921284,96342.0,96341.0,0.01381284]
[1740360311887,0.16921284,96342.0,96341.0,0.0038497]
[1740360312878,0.16921284,96342.0,96341.0,0.0008497]
[1740360313236,0.16921284,96342.0,96341.0,0.0038497]
[1740360314625,0.16921284,96342.0,96341.0,0.0008497]
[1740360314890,0.16921284,96342.0,96341.0,0.0018497]
[1740360316254,0.16921284,96342.0,96341.0,0.1272497]
[1740360316484,0.16921284,96342.0,96341.0,0.1292497]
[1740360316698,0.16921284,96342.0,96341.0,0.13920723]
[1740360316945,0.16921284,96342.0,96341.0,0.13720723]
[1740360317454,0.16921284,96342.0,96341.0,0.14020723]
[1740360317722,0.17021284,96342.0,96341.0,0.14020723]
[1740360318194,0.01351784,96342.0,96341.0,0.14020723]
[1740360319946,0.01351784,96342.0,96341.0,0.15966587]
[1740360321949,0.01351784,96342.0,96341.0,0.14020723]
[1740360322354,0.01351784,96342.0,96341.0,0.01380723]
[1740360322554,0.01351784,96342.0,96341.0,0.0038497]
[1740360322995,0.16921284,96342.0,96341.0,0.0038497]
[1740360323200,0.31921284,96342.0,96341.0,0.0008497]
[1740360323616,0.31921284,96342.0,96341.0,0.0028497]
[1740360323814,2.02830084,96342.0,96341.0,0.0008497]
[1740360323974,1.71747084,96342.0,96341.0,0.0008497]
[1740360324182,0.31921284,96342.0,96341.0,0.0028497]
[1740360324377,0.32021284,96342.0,96341.0,0.0028497]
[1740360324610,0.46787184,96342.0,96341.0,0.0028497]
[1740360327330,0.46687184,96342.0,96341.0,0.0028497]
[1740360328159,0.46987184,96342.0,96341.0,0.0028497]
[1740360329510,0.46687184,96342.0,96341.0,0.0028497]
[1740360329819,0.46787184,96342.0,96341.0,0.0028497]
[1740360330054,0.32021284,96342.0,96341.0,0.0028497]
[1740360330270,0.31921284,96342.0,96341.0,0.0008497]
[1740360330464,0.31921284,96342.0,96341.0,0.0018497]
[1740360330757,0.32121284,96342.0,96341.0,0.0018497]
[1740360330966,0.01551784,96342.0,96341.0,0.0829497]
[1740360331201,0.01351784,96342.0,96341.0,0.0829497]
[1740360331394,0.01351784,96342.0,96341.0,0.09190786]
[1740360331395,0.01451784,96342.0,96341.0,0.09190786]
[1740360331532,0.01451784,96342.0,96341.0,0.09290786]
[1740360331937,0.01451784,96342.0,96341.0,0.11136704]
[1740360332140,0.01451784,96342.0,96341.0,0.11436704]
[1740360332347,0.17021284,96342.0,96341.0,0.11436704]
[1740360332551,0.16921284,96342.0,96341.0,0.11436704]
[1740360333124,0.16921284,96342.0,96341.0,0.10440888]
[1740360333585,0.16921284,96342.0,96341.0,0.10140888]
[1740360333946,0.16921284,96342.0,96341.0,0.10440888]
[1740360335140,0.16921284,96342.0,96341.0,0.1355501]
[1740360335339,0.16921284,96342.0,96341.0,0.14550826]
[1740360336642,0.16921284,96342.0,96341.0,0.11436704]
[1740360337054,0.16921284,96342.0,96341.0,0.10440888]
[1740360341844,0.16921284,96342.0,96341.0,0.02330888]
[1740360342289,1.56439084,96342.0,96341.0,0.02330888]
[1740360342460,1.74767084,96342.0,96341.0,0.0038497]
[1740360342693,0.16921284,96342.0,96341.0,0.0038497]
[1740360342893,1.74477084,96342.0,96341.0,0.0038497]
[1740360343022,1.74479184,96342.0,96341.0,0.0038497]
[1740360343242,1.54479184,96342.0,96341.0,0.0038497]
[1740360343937,1.54479184,96342.0,96341.0,0.0008497]
[1740360344116,1.54479184,96342.0,96341.0,0.0028497]
[1740360345286,1.53147084,96342.0,96341.0,0.0028497]
[1740360345922,1.53047084,96342.0,96341.0,0.0028497]
[1740360346094,0.81809084,96342.0,96341.0,0.0028497]
[1740360346724,0.81609084,96342.0,96341.0,0.0028497]
[1740360346930,0.44621784,96342.0,96341.0,0.0028497]
[1740360347138,0.40434784,96342.0,96341.0,0.0028497]
[1740360347343,0.40434784,96342.0,96341.0,0.0008497]
[1740360347843,0.40434784,96342.0,96341.0,0.0018497]
[1740360348045,0.17121284,96342.0,96341.0,0.0807497]
[1740360348164,0.16921284,96342.0,96341.0,0.0817497]
[1740360348360,0.17021284,96342.0,96341.0,0.0817497]
[1740360348560,0.17021284,96342.0,96341.0,0.1304497]
[1740360348789,0.17021284,96342.0,96341.0,0.14040676]
[1740360348990,0.16921284,96342.0,96341.0,0.13940676]
[1740360349543,0.17021284,96342.0,96341.0,0.14140676]
[1740360349958,0.01351784,96342.0,96341.0,0.14140676]
[1740360350774,0.01351784,96342.0,96341.0,0.13940676]
[1740360351214,0.01351784,96342.0,96341.0,0.24505245]
[1740360351368,0.01351784,96342.0,96341.0,0.24205245]
[1740360351829,0.01351784,96342.0,96341.0,0.24505245]
[1740360352185,0.16921284,96342.0,96341.0,0.24505245]
[1740360352400,0.01351784,96342.0,96341.0,0.26451629]
[1740360356262,0.16921284,96342.0,96341.0,0.26451629]
[1740360356759,0.16921284,96342.0,96341.0,0.0332706]
[1740360357213,0.16921284,96342.0,96341.0,0.02331354]
[1740360357542,0.16921284,96342.0,96341.0,0.02031354]
[1740360357952,0.16921284,96342.0,96341.0,0.02331354]
[1740360358349,0.16921284,96342.0,96341.0,0.02031354]
[1740360358578,0.16921284,96342.0,96341.0,0.02231354]
[1740360358855,0.16921284,96342.0,96341.0,0.02031354]
[1740360359252,0.01351784,96342.0,96341.0,0.02231354]
[1740360359460,0.01351784,96342.0,96341.0,0.20115923]
[1740360359734,0.0008504,96342.0,96341.0,0.21111169]
[1740360359925,0.0008504,96342.0,96341.0,0.42744854]
[1740360360681,0.0008504,96342.0,96341.0,0.74382979]
[1740360360925,0.0008504,96342.0,96341.0,0.74182979]
[1740360362076,0.0018504,96342.0,96341.0,0.75327711]
[1740360365337,0.0018504,96342.0,96341.0,0.74807876]
[1740360390256,0.0018504,96342.0,96341.0,0.45554191]
[1740360390695,0.0018504,96342.0,96341.0,0.47008276]
[1740360390912,0.1575454,96342.0,96341.0,0.45554191]
[1740360391624,0.1575454,96342.0,96341.0,0.13916066]
[1740360392213,0.1565454,96342.0,96341.0,0.13616066]
[1740360392604,0.1565454,96342.0,96341.0,0.13691169]
[1740360393948,0.1565454,96342.0,96341.0,0.034266]
[1740360394398,0.1565454,96342.0,96341.0,0.02431354]
[1740360396375,0.16425834,96342.0,96341.0,0.02431354]
[1740360396782,0.63636934,96342.0,96341.0,0.02431354]
[1740360396989,0.62144734,96342.0,96341.0,0.02431354]
[1740360397404,0.77144734,96342.0,96341.0,0.02431354]
[1740360397602,0.77144734,96342.0,96341.0,0.0048497]
[1740360398008,0.77244734,96342.0,96341.0,0.0008497]
[1740360398218,0.85464734,96342.0,96341.0,0.0038497]
[1740360398517,0.85364734,96342.0,96341.0,0.0008497]
[1740360398764,0.305701,96338.0,96337.0,0.0017002]
[1740360400771,1.77982973,96338.0,96337.0,0.0017002]
[1740360400970,2.06791273,96338.0,96337.0,0.0017002]
[1740360401172,0.82615773,96338.0,96337.0,0.0017002]
[1740360401376,0.77066073,96338.0,96337.0,0.0017002]
[1740360401575,0.683925,96338.0,96337.0,0.0017002]
[1740360401772,0.685925,96338.0,96337.0,0.0017002]
[1740360406576,0.391701,96338.0,96337.0,0.0017002]
[1740360406785,1.067965,96338.0,96337.0,0.0017002]
[1740360407015,1.072605,96338.0,96337.0,0.0017002]
[1740360408144,1.17525069,96338.0,96337.0,0.0017002]
[1740360408293,1.072605,96338.0,96337.0,0.0017002]
[1740360408498,0.569819,96338.0,96337.0,0.0017002]
[1740360415069,0.525319,96338.0,96337.0,0.0017002]
[1740360415546,0.312701,96338.0,96337.0,0.0017002]
[1740360416235,0.007,96338.0,96337.0,0.0017002]
[1740360416705,0.162701,96338.0,96337.0,0.0017002]
[1740360417177,0.157701,96338.0,96337.0,0.0017002]
[1740360418502,0.155701,96338.0,96337.0,0.0017002]
[1740360418916,0.155701,96338.0,96337.0,0.0037002]
[1740360425085,0.155701,96338.0,96337.0,0.02315655]
[1740360426330,0.155701,96338.0,96337.0,0.0037002]
[1740360433419,0.157701,96338.0,96337.0,0.0037002]
[1740360433619,0.157701,96338.0,96337.0,0.0017002]
[1740360436790,0.307701,96338.0,96337.0,0.0017002]
[1740360438881,0.39366147,96338.0,96337.0,0.0017002]
[1740360439739,0.307701,96338.0,96337.0,0.0017002]
[1740360440750,0.305701,96338.0,96337.0,0.0017002]
[1740360440973,0.310701,96338.0,96337.0,0.0017002]
[1740360442104,0.535026,96338.0,96337.0,0.0017002]
[1740360442307,0.534026,96338.0,96337.0,0.0017002]
[1740360442533,0.416082,96338.0,96337.0,0.0017002]
[1740360442730,0.312701,96338.0,96337.0,0.0017002]
[1740360443358,0.307701,96338.0,96337.0,0.0017002]
[1740360443588,0.311701,96338.0,96337.0,0.0017002]
[1740360443764,0.313701,96338.0,96337.0,0.0017002]
[1740360443949,0.793561,96338.0,96337.0,0.0017002]
[1740360444168,0.789561,96338.0,96337.0,0.0017002]
[1740360446214,0.790561,96338.0,96337.0,0.0017002]
[1740360446419,0.93940669,96338.0,96337.0,0.0017002]
[1740360449484,0.155738,96315.0,96311.0,0.0484]
[1740360449691,0.155738,96315.0,96311.0,0.0004]
[1740360449890,0.155738,96315.0,96314.0,0.01167333]
[1740360450091,0.155738,96315.0,96314.0,0.0016998]
[1740360450293,0.305738,96315.0,96314.0,0.0016998]
[1740360450700,0.39802929,96315.0,96314.0,0.0066998]
[1740360450905,0.39807212,96315.0,96314.0,0.0066998]
[1740360451129,1.52313912,96315.0,96314.0,0.0016998]
[1740360451287,1.30528812,96315.0,96314.0,0.0016998]
[1740360451684,1.31315305,96315.0,96314.0,0.0016998]
[1740360452494,1.22186176,96315.0,96314.0,0.0036998]
[1740360452694,1.22086176,96315.0,96314.0,0.0016998]
[1740360453141,1.22786176,96315.0,96314.0,0.0016998]
[1740360453372,0.99623176,96315.0,96314.0,0.0016998]
[1740360453574,0.99223176,96315.0,96314.0,0.0016998]
[1740360453782,1.10087745,96315.0,96314.0,0.0016998]
[1740360454289,1.11714441,96315.0,96314.0,0.0016998]
[1740360455384,1.20014441,96315.0,96314.0,0.0016998]
[1740360455817,0.15,96314.0,96291.0,0.001701]
[1740360456015,0.155776,96292.0,96291.0,0.001701]
[1740360457110,0.155774,96294.0,96291.0,0.001701]
[1740360457310,0.155775,96293.0,96292.0,0.076]
[1740360457713,0.155775,96293.0,96292.0,0.08601377]
[1740360457831,0.155775,96293.0,96292.0,0.076]
[1740360458654,0.16763973,96293.0,96292.0,0.076]
[1740360462060,0.16763973,96293.0,96292.0,0.0768501]
[1740360464615,0.16763973,96293.0,96292.0,0.0008501]
[1740360465021,0.3967105,96293.0,96292.0,0.0008501]
[1740360465359,0.31763973,96293.0,96292.0,0.0008501]
[1740360466017,0.31863973,96293.0,96292.0,0.0008501]
[1740360466241,0.31863973,96293.0,96292.0,0.0018501]
[1740360466652,0.31763973,96293.0,96292.0,0.0008501]
[1740360466874,0.31763973,96293.0,96292.0,0.0018501]
[1740360467713,0.31763973,96293.0,96292.0,0.0008501]
[1740360467892,0.31763973,96293.0,96292.0,0.0018501]
[1740360468457,0.155775,96293.0,96292.0,0.0018501]
[1740360469135,0.001,96293.0,96291.0,1e-08]
[1740360469312,0.155776,96292.0,96291.0,1e-08]
[1740360470525,0.305776,96292.0,96291.0,0.00100001]
[1740360470938,2.12361,96292.0,96291.0,0.00100001]
[1740360471958,1.953172,96292.0,96291.0,0.00100001]
[1740360473312,0.305776,96292.0,96291.0,0.00100001]
[1740360473452,2.26900246,96292.0,96291.0,0.00100001]
[1740360473683,2.27300246,96292.0,96291.0,0.00100001]
[1740360473880,2.07378546,96292.0,96291.0,1e-08]
[1740360474087,0.39735846,96292.0,96291.0,1e-08]
[1740360474288,0.39335846,96292.0,96291.0,1e-08]
[1740360474744,0.39435846,96292.0,96291.0,1e-08]
[1740360475742,0.39835846,96292.0,96291.0,1e-08]
[1740360475944,0.310776,96292.0,96291.0,1e-08]
[1740360476317,0.309776,96292.0,96291.0,1e-08]
[1740360476520,0.310776,96292.0,96291.0,1e-08]
[1740360476899,0.306776,96292.0,96291.0,1e-08]
[1740360477314,0.312776,96292.0,96291.0,1e-08]
[1740360477746,0.314776,96292.0,96291.0,1e-08]
[1740360477903,0.312776,96292.0,96291.0,1e-08]
[1740360478309,0.315776,96292.0,96291.0,1e-08]
[1740360478520,0.315776,96292.0,96291.0,0.02079779]
[1740360478718,0.786294,96292.0,96291.0,1e-08]
[1740360478944,0.313776,96292.0,96291.0,1e-08]
[1740360479589,0.305776,96292.0,96291.0,1e-08]
[1740360479794,0.310776,96292.0,96291.0,1e-08]
[1740360481834,0.306776,96292.0,96291.0,1e-08]
[1740360482053,0.309776,96292.0,96291.0,1e-08]
[1740360482702,0.308776,96292.0,96291.0,1e-08]
[1740360483118,0.308776,96292.0,96291.0,0.0209454]
[1740360483284,0.632463,96292.0,96291.0,0.0209454]
[1740360484900,0.523541,96292.0,96291.0,0.0209454]
[1740360485103,0.458841,96292.0,96291.0,0.0209454]
[1740360485308,0.308776,96292.0,96291.0,0.0209454]
[1740360485939,0.305776,96292.0,96291.0,0.0209454]
[1740360486354,0.309477,96292.0,96291.0,0.0209454]
[1740360488163,0.811016,96292.0,96291.0,0.0209454]
[1740360488606,0.624287,96292.0,96291.0,0.0209454]
[1740360489314,0.463425,96292.0,96291.0,0.0209454]
[1740360491612,0.26238899,96292.0,96291.0,0.0209454]
[1740360492868,0.41816499,96292.0,96291.0,0.0209454]
[1740360494421,0.40471999,96292.0,96291.0,0.0209454]
[1740360495048,0.40471999,96292.0,96291.0,1e-08]
[1740360495241,0.26421699,96292.0,96291.0,1e-08]
[1740360496009,0.003701,96292.0,96291.0,1e-08]
[1740360496212,0.003701,96292.0,96291.0,0.091351]
[1740360496419,0.003701,96292.0,96291.0,0.09614086]
[1740360496624,0.003701,96292.0,96291.0,0.20853877]
[1740360497494,0.001701,96292.0,96291.0,0.20853877]
[1740360498882,0.001701,96292.0,96291.0,0.21178973]
[1740360499671,0.001701,96292.0,96291.0,0.21278973]
[1740360500314,0.001701,96292.0,96291.0,0.20953877]
[1740360500512,0.001701,96292.0,96291.0,0.20853877]
[1740360500763,0.002701,96292.0,96291.0,0.21053877]
[1740360504098,0.002701,96292.0,96291.0,0.41241577]
[1740360504945,0.002701,96292.0,96291.0,0.42019192]
[1740360505351,0.002701,96292.0,96291.0,0.42344218]
[1740360506152,0.001701,96292.0,96291.0,0.42144218]
[1740360506595,0.002701,96292.0,96291.0,0.42844218]
[1740360506790,0.003701,96292.0,96291.0,0.43344218]
[1740360507071,0.003701,96292.0,96291.0,0.44132218]
[1740360507515,0.003701,96292.0,96291.0,0.43344218]
[1740360508271,0.003701,96292.0,96291.0,0.44132218]
[1740360510263,0.003701,96292.0,96291.0,0.75770343]
[1740360510760,0.003701,96292.0,96291.0,0.74992728]
[1740360512141,0.003701,96292.0,96291.0,0.75770343]
[1740360512549,0.003701,96292.0,96291.0,0.74982343]
[1740360515075,0.003701,96292.0,96291.0,0.57950558]
[1740360515254,0.003701,96292.0,96291.0,0.59404643]
[1740360516028,0.003701,96292.0,96291.0,0.58302002]
[1740360516406,0.003701,96292.0,96291.0,0.26663877]
[1740360517243,0.003701,96292.0,96291.0,0.22053877]
[1740360517444,0.003701,96292.0,96291.0,0.02175223]
[1740360517855,0.002701,96292.0,96291.0,0.00700001]
[1740360518275,0.003701,96292.0,96291.0,0.01200001]
[1740360519134,0.153701,96292.0,96291.0,0.00700001]
[1740360519367,0.152701,96292.0,96291.0,0.00700001]
[1740360519572,0.151701,96292.0,96291.0,1e-08]
[1740360519798,0.152701,96292.0,96291.0,0.00600001]
[1740360520020,0.152701,96292.0,96291.0,1e-08]
[1740360520251,0.151701,96292.0,96291.0,1e-08]
[1740360520456,0.151701,96292.0,96291.0,0.00100001]
[1740360520785,0.153701,96292.0,96291.0,0.00100001]
[1740360521774,0.207697,96294.0,96291.0,0.00100001]
[1740360521994,0.155775,96293.0,96291.0,0.00100001]
[1740360522482,0.0758,96292.0,96291.0,0.00100001]
[1740360522694,0.0758,96292.0,96291.0,1e-08]
[1740360522936,0.327168,96292.0,96291.0,1e-08]
[1740360523167,0.0758,96292.0,96291.0,0.00100001]
[1740360523368,0.0758,96292.0,96291.0,1e-08]
[1740360523760,0.0758,96292.0,96291.0,0.00100001]
[1740360524223,0.356155,96292.0,96291.0,0.00100001]
[1740360524397,0.183564,96292.0,96291.0,0.00100001]
[1740360524760,0.184564,96292.0,96291.0,0.00100001]
[1740360524956,0.34034,96292.0,96291.0,0.00100001]
[1740360525611,0.33934,96292.0,96291.0,0.00100001]
[1740360526115,0.69468823,96292.0,96291.0,0.00100001]
[1740360526323,0.69468823,96292.0,96291.0,1e-08]
[1740360526490,0.58692423,96292.0,96291.0,1e-08]
[1740360527097,0.59533028,96292.0,96291.0,1e-08]
[1740360527306,0.59633028,96292.0,96291.0,1e-08]
[1740360527499,0.59333028,96292.0,96291.0,1e-08]
[1740360527855,0.59733028,96292.0,96291.0,1e-08]
[1740360530979,0.92533028,96292.0,96291.0,1e-08]
[1740360531173,0.92133028,96292.0,96291.0,1e-08]
[1740360531537,0.92733028,96292.0,96291.0,0.00100001]
[1740360531969,0.93433028,96292.0,96291.0,0.00200001]
[1740360532179,3.30584128,96292.0,96291.0,0.00200001]
[1740360532802,1.65155046,96292.0,96291.0,0.00200001]
[1740360533010,1.29052233,96292.0,96291.0,0.00200001]
[1740360533221,0.66945492,96292.0,96291.0,0.00200001]
[1740360533434,0.78044592,96292.0,96291.0,0.00200001]
[1740360535447,0.63044592,96292.0,96291.0,0.00200001]
[1740360535682,0.342,96292.0,96291.0,0.07970001]
[1740360535889,0.014,96292.0,96291.0,0.07970001]